bitfinex-derivatives/quotes_SOLF0:USTF0_20250320
["timestamp","ask_amount","ask_price","bid_price","bid_amount"]
[1742472738623,0.05159056,130.38,130.35,0.05566875]
[1742472739530,0.05159056,130.38,130.37,7.6733]
[1742472748231,0.05159056,130.38,130.36,17.78890542]
[1742472748731,0.05159056,130.38,130.36,7.6737]
[1742472749232,0.05159056,130.38,130.35,0.05566875]
[1742472749830,0.05159056,130.38,130.36,7.6739]
[1742472750030,0.05159056,130.38,130.35,0.05566875]
[1742472750432,0.05159056,130.38,130.37,7.6733]
[1742472756636,27.4,130.42,130.37,27.4]
[1742472756836,27.4,130.42,130.39,17.78890542]
[1742472757032,27.4,130.42,130.4,7.6712]
[1742472757238,27.4,130.42,130.39,17.78890542]
[1742472757734,27.45696518,130.42,130.39,17.84048843]
[1742472758438,27.45696518,130.42,130.4,7.6711]
[1742472758739,27.45696518,130.42,130.39,17.84048843]
[1742472759534,27.45696518,130.42,130.4,7.6711]
[1742472759731,0.05696518,130.42,130.4,7.6711]
[1742472760133,0.05696518,130.42,130.41,7.671]
[1742472761934,0.05696518,130.42,130.41,19.05484472]
[1742472762239,69.68652903,130.47,130.45,7.6684]
[1742472762434,69.68652903,130.47,130.44,11.38384472]
[1742472762836,69.68652903,130.47,130.43,11.38384472]
[1742472763031,81.07037375,130.47,130.43,11.38384472]
[1742472763232,81.07037375,130.47,130.43,19.05314472]
[1742472763437,0.05483894,130.46,130.44,0.05337273]
[1742472763633,27.53483894,130.46,130.44,0.05337273]
[1742472764541,27.53483894,130.46,130.44,7.72247273]
[1742472764741,35.20293894,130.46,130.44,0.05337273]
[1742472765042,27.53483894,130.46,130.44,0.05337273]
[1742472765244,38.91868366,130.46,130.44,0.05337273]
[1742472765442,7.6686,130.45,130.44,0.05337273]
[1742472765644,38.91868366,130.46,130.44,0.05337273]
[1742472766040,7.6686,130.45,130.44,0.05337273]
[1742472766443,46.58698366,130.46,130.44,0.05337273]
[1742472767044,7.6686,130.45,130.44,0.05337273]
[1742472768747,7.67,130.43,130.41,11.38384472]
[1742472768949,7.67,130.43,130.4,11.38384472]
[1742472769251,46.51384472,130.43,130.4,7.6715]
[1742472769945,46.57005118,130.43,130.4,7.72761903]
[1742472770150,11.38384472,130.42,130.4,0.05611903]
[1742472770451,11.38384472,130.41,130.4,0.05611903]
[1742472770646,19.05484472,130.41,130.4,0.05611903]
[1742472770950,11.38384472,130.41,130.36,7.6737]
[1742472771144,38.86384472,130.4,130.36,7.6737]
[1742472771345,7.6724,130.39,130.36,7.6737]
[1742472771651,38.86384472,130.4,130.37,7.6733]
[1742472771949,27.52866466,130.4,130.37,0.05393807]
[1742472773045,27.52866466,130.4,130.37,7.72693807]
[1742472773247,27.52866466,130.4,130.37,0.05393807]
[1742472773553,27.52866466,130.4,130.39,7.6722]
[1742472773953,27.52866466,130.4,130.38,19.05624472]
[1742472775248,27.52866466,130.4,130.38,7.6724]
[1742472776956,27.52866466,130.4,130.37,0.05393807]
[1742472777156,0.04866466,130.4,130.37,0.05393807]
[1742472777547,0.04866466,130.4,130.39,7.6722]
[1742472777953,0.04866466,130.4,130.37,45.28611857]
[1742472778650,0.04866466,130.4,130.39,7.6722]
[1742472781253,0.04866466,130.4,130.39,25.4643805]
[1742472781456,102.09717636,130.46,130.39,17.7921805]
[1742472781457,44.27022903,130.46,130.39,17.7921805]
[1742472781657,27.44,130.45,130.39,17.7921805]
[1742472781851,27.44,130.45,130.4,27.44]
[1742472782060,27.44,130.45,130.41,17.7921805]
[1742472782358,27.44,130.45,130.4,7.6713]
[1742472782655,0.04849983,130.44,130.42,0.05769445]
[1742472782854,2.22969983,130.44,130.42,0.05769445]
[1742472783056,7.6698,130.43,130.42,0.05769445]
[1742472783860,20.02188033,130.44,130.38,7.6726]
[1742472784257,7.671,130.42,130.38,7.6726]
[1742472784450,27.44,130.41,130.38,7.6726]
[1742472784856,27.4915109,130.41,130.38,7.73114818]
[1742472785359,27.4915109,130.41,130.38,0.05854818]
[1742472785955,0.0515109,130.41,130.4,7.6716]
[1742472789163,1.09e-05,130.41,130.4,7.6716]
[1742472790362,10.56850084,130.47,130.41,17.7921805]
[1742472790567,10.56850084,130.47,130.43,17.7921805]
[1742472790767,10.56850084,130.47,130.45,7.6684]
[1742472791458,10.61983927,130.47,130.45,7.72352041]
[1742472792469,10.61983927,130.47,130.45,0.05512041]
[1742472792864,0.05133843,130.47,130.45,0.05512041]
[1742472793264,0.05133843,130.47,130.45,7.72342041]
[1742472795172,0.05133843,130.47,130.46,7.668]
[1742472795572,0.05133843,130.47,130.45,7.72352041]
[1742472795774,0.05133843,130.47,130.45,0.05512041]
[1742472797362,7.71883843,130.47,130.45,0.05512041]
[1742472797565,0.05133843,130.47,130.45,0.05512041]
[1742472798876,0.05133843,130.47,130.45,7.72372041]
[1742472800173,0.05133843,130.47,130.46,7.668]
[1742472802575,46.49362903,130.53,130.49,7.6661]
[1742472802771,27.4,130.52,130.45,45.2121805]
[1742472802968,35.0648,130.52,130.47,17.7921805]
[1742472803177,35.0648,130.52,130.48,7.6663]
[1742472803476,35.0648,130.52,130.47,17.7921805]
[1742472803674,7.6652,130.51,130.47,17.7921805]
[1742472803874,0.0542076,130.51,130.48,0.0569188]
[1742472804775,0.0542076,130.51,130.5,7.6657]
[1742472805379,0.0542076,130.51,130.48,0.0569188]
[1742472806677,0.0542076,130.51,130.49,7.6659]
[1742472806978,0.0542076,130.51,130.48,0.0569188]
[1742472807576,7.6661,130.5,130.48,0.0569188]
[1742472808185,0.0542076,130.51,130.48,0.0569188]
[1742472808883,0.0542076,130.51,130.48,7.7233188]
[1742472809088,0.0542076,130.51,130.48,0.0569188]
[1742472810982,0.0542076,130.51,130.48,7.7233188]
[1742472811183,7.7193076,130.51,130.48,0.0569188]
[1742472811483,0.0542076,130.51,130.48,7.7238188]
[1742472811685,27.38,130.5,130.48,0.0569188]
[1742472811987,27.38,130.5,130.43,7.6695]
[1742472811988,45.1721805,130.5,130.43,7.6695]
[1742472812187,7.6678,130.47,130.41,45.1921805]
[1742472812380,27.4,130.47,130.41,45.1921805]
[1742472812582,27.4,130.47,130.44,7.6689]
[1742472812786,35.0676,130.47,130.44,7.6689]
[1742472812987,35.11898189,130.47,130.44,0.04983718]
[1742472813492,27.45138189,130.47,130.44,0.04983718]
[1742472813895,27.45138189,130.47,130.45,7.6683]
[1742472814090,27.45138189,130.47,130.44,0.04983718]
[1742472815087,27.45138189,130.47,130.44,7.71873718]
[1742472815289,27.45138189,130.47,130.44,0.04983718]
[1742472816498,35.11888189,130.47,130.44,0.04983718]
[1742472817498,35.11888189,130.47,130.44,7.71903718]
[1742472817697,27.45138189,130.47,130.44,7.71903718]
[1742472821198,27.45138189,130.47,130.44,19.09533434]
[1742472822700,27.45138189,130.47,130.45,7.6686]
[1742472823097,27.45138189,130.47,130.45,11.37629716]
[1742472823297,27.45138189,130.47,130.46,7.668]
[1742472823298,0.05138189,130.47,130.46,7.668]
[1742472826605,0.05138189,130.47,130.46,19.04429716]
[1742472828109,0.05138189,130.47,130.46,7.668]
[1742472828307,0.05138189,130.47,130.45,11.37629716]
[1742472829014,0.05138189,130.47,130.45,19.04479716]
[1742472829917,0.05138189,130.47,130.46,7.668]
[1742472832118,0.05138189,130.47,130.45,19.04469716]
[1742472832311,0.05138189,130.47,130.45,7.6684]
[1742472834414,0.05138189,130.47,130.44,0.04983718]
[1742472834616,11.42767905,130.47,130.44,0.04983718]
[1742472835010,27.38,130.46,130.44,7.71873718]
[1742472836730,27.38,130.46,130.45,7.6686]
[1742472836921,0.05138189,130.47,130.45,11.37629716]
[1742472837220,0.05138189,130.47,130.46,19.04429716]
[1742472837421,0.05138189,130.47,130.46,7.668]
[1742472838320,0.05138189,130.47,130.45,19.04459716]
[1742472838719,0.05138189,130.47,130.46,7.668]
[1742472839523,0.05138189,130.47,130.45,19.04459716]
[1742472839715,0.05138189,130.47,130.44,11.42613434]
[1742472840512,7.71908189,130.47,130.44,11.42613434]
[1742472840718,0.05138189,130.47,130.44,0.04983718]
[1742472841923,0.05138189,130.47,130.44,7.71883718]
[1742472843123,7.71888189,130.47,130.44,7.71883718]
[1742472843324,0.05138189,130.47,130.44,7.71883718]
[1742472843924,0.05138189,130.47,130.45,7.6686]
[1742472844922,0.05138189,130.47,130.44,19.09503434]
[1742472845123,7.71888189,130.47,130.44,19.09503434]
[1742472846123,0.05138189,130.47,130.45,7.6686]
[1742472847727,0.05138189,130.47,130.44,0.04983718]
[1742472848823,0.05138189,130.47,130.44,7.71873718]
[1742472849126,0.05138189,130.47,130.44,0.04983718]
[1742472849726,0.05138189,130.47,130.45,7.6684]
[1742472851223,7.71898189,130.47,130.45,7.6684]
[1742472851433,7.71898189,130.47,130.44,7.71883718]
[1742472851826,7.6681,130.46,130.44,7.71883718]
[1742472852030,7.6681,130.46,130.44,0.04983718]
[1742472852231,0.05138189,130.47,130.44,0.04983718]
[1742472852531,7.71918189,130.47,130.44,7.71863718]
[1742472852830,0.05138189,130.47,130.44,7.71863718]
[1742472854329,7.71918189,130.47,130.45,7.6686]
[1742472855233,0.05138189,130.47,130.45,7.6686]
[1742472855434,0.05138189,130.47,130.44,11.42613434]
[1742472855735,7.6683,130.46,130.44,0.04983718]
[1742472856034,27.38,130.45,130.44,0.04983718]
[1742472856231,46.42489716,130.45,130.44,0.04983718]
[1742472857431,35.0486,130.45,130.44,0.04983718]
[1742472857732,27.38,130.45,130.44,0.04983718]
[1742472858134,35.0486,130.45,130.44,0.04983718]
[1742472863025,27.38,130.45,130.44,0.04983718]
[1742472864035,27.43138189,130.47,130.44,11.42613434]
[1742472864426,27.43138189,130.47,130.45,7.6684]
[1742472865235,27.43138189,130.47,130.44,19.09493434]
[1742472865432,27.38,130.46,130.44,19.09493434]
[1742472865937,27.38,130.46,130.44,11.42613434]
[1742472866835,27.38,130.46,130.44,19.09533434]
[1742472867039,27.38,130.46,130.44,11.42613434]
[1742472870343,27.38,130.46,130.44,19.09503434]
[1742472870735,27.38,130.46,130.44,11.42613434]
[1742472871438,27.38,130.46,130.45,7.6686]
[1742472873036,27.38,130.46,130.45,19.04489716]
[1742472874643,0.05138189,130.47,130.46,7.668]
[1742472879449,0.05138189,130.47,130.46,19.04429716]
[1742472889151,18.21263129,130.5,130.46,11.37629716]
[1742472889356,18.21263129,130.5,130.49,11.37629716]
[1742472890458,18.21263129,130.5,130.49,19.04259716]
[1742472890757,18.21263129,130.5,130.49,11.37629716]
[1742472892558,18.21263129,130.5,130.49,19.04259716]
[1742472894960,18.21263129,130.5,130.48,19.09823203]
[1742472895157,18.21263129,130.5,130.48,0.05543487]
[1742472895368,0.05613727,130.51,130.49,11.37629716]
[1742472895656,0.05613727,130.51,130.5,11.37629716]
[1742472895855,0.05613727,130.51,130.49,11.37629716]
[1742472896057,0.05613727,130.51,130.49,19.04209716]
[1742472896256,0.05613727,130.51,130.49,11.37629716]
[1742472896760,0.05613727,130.51,130.5,7.6657]
[1742472900961,0.05613727,130.51,130.5,19.04199716]
[1742472901760,0.05613727,130.51,130.48,11.43173203]
[1742472902265,0.05613727,130.51,130.48,19.09823203]
[1742472902266,7.72163727,130.51,130.48,19.09823203]
[1742472903160,0.05613727,130.51,130.49,7.6661]
[1742472903765,7.72133727,130.51,130.49,7.6661]
[1742472903959,7.72133727,130.51,130.48,19.09833203]
[1742472904159,7.72133727,130.51,130.48,11.43173203]
[1742472904363,7.72133727,130.51,130.48,19.09823203]
[1742472904668,0.05613727,130.51,130.48,11.43173203]
[1742472904965,0.05613727,130.51,130.5,19.04199716]
[1742472909457,44.37732903,130.57,130.5,19.04199716]
[1742472909664,27.46,130.56,130.53,11.37629716]
[1742472909968,71.83732903,130.57,130.54,11.37629716]
[1742472910664,71.89149019,130.57,130.55,7.6627]
[1742472910864,69.74069019,130.57,130.54,11.43370542]
[1742472911060,42.28069019,130.57,130.54,0.05740826]
[1742472911265,69.74069019,130.57,130.54,0.05740826]
[1742472911668,7.6625,130.56,130.54,0.05740826]
[1742472912368,7.6628,130.55,130.54,0.05740826]
[1742472912568,19.03909716,130.55,130.54,0.05740826]
[1742472912769,19.03909716,130.55,130.5,11.37629716]
[1742472912770,11.37629716,130.55,130.5,11.37629716]
[1742472912974,11.37629716,130.52,130.48,252.9]
[1742472913269,27.46,130.51,130.48,252.9]
[1742472913468,27.46,130.51,130.48,260.5668]
[1742472913767,27.513485,130.51,130.48,272.00212985]
[1742472914165,35.178985,130.51,130.48,264.33532985]
[1742472914470,27.513485,130.51,130.48,264.33532985]
[1742472914662,35.178985,130.51,130.48,264.33532985]
[1742472914868,27.513485,130.51,130.48,264.33532985]
[1742472915069,7.666,130.5,130.48,264.33532985]
[1742472915264,7.666,130.5,130.48,11.43532985]
[1742472915671,35.178885,130.51,130.48,19.10222985]
[1742472916368,7.6657,130.5,130.48,11.43532985]
[1742472916574,7.6657,130.5,130.48,0.05903269]
[1742472918169,38.88978216,130.51,130.48,0.05903269]
[1742472918376,11.37629716,130.5,130.48,0.05903269]
[1742472918774,7.6663,130.49,130.48,0.05903269]
[1742472920072,38.88978216,130.51,130.48,0.05903269]
[1742472920375,7.6657,130.5,130.48,0.05903269]
[1742472920574,38.88978216,130.51,130.48,0.05903269]
[1742472921275,7.6663,130.49,130.48,0.05903269]
[1742472921575,19.04259716,130.49,130.48,0.05903269]
[1742472922578,7.6663,130.49,130.48,0.05903269]
[1742472924277,7.6676,130.47,130.44,264.25629716]
[1742472924673,7.6684,130.46,130.44,264.25629716]
[1742472924878,7.6684,130.46,130.44,252.88]
[1742472925275,7.6684,130.46,130.44,260.60642164]
[1742472925276,0.05667754,130.46,130.44,260.60642164]
[1742472926278,0.05667754,130.46,130.45,7.6686]
[1742472926479,0.05667754,130.46,130.45,19.04489716]
[1742472927681,7.754e-05,130.46,130.45,19.04489716]
[1742472927982,42.22652903,130.52,130.45,46.43629716]
[1742472928280,42.22652903,130.52,130.5,11.37629716]
[1742472928879,42.22652903,130.52,130.51,19.04139716]
[1742472929080,42.28551492,130.52,130.51,19.04139716]
[1742472929780,42.28551492,130.52,130.51,11.37629716]
[1742472930179,42.28551492,130.52,130.5,11.42943709]
[1742472930477,0.05898589,130.52,130.5,11.42943709]
[1742472931281,0.05898589,130.52,130.5,19.09503709]
[1742472931580,0.05898589,130.52,130.51,11.37629716]
[1742472933078,0.05898589,130.52,130.5,11.42943709]
[1742472933578,0.05898589,130.52,130.51,11.37629716]
[1742472935885,0.05898589,130.52,130.51,19.04139716]
[1742472936889,8.589e-05,130.52,130.51,19.04139716]
[1742472937475,29.4468,130.57,130.54,7.6628]
[1742472937676,29.4468,130.57,130.54,19.03909716]
[1742472937879,2.0668,130.57,130.54,19.03909716]
[1742472938077,29.4668,130.57,130.53,19.03989716]
[1742472938483,7.6632,130.55,130.52,7.6644]
[1742472938682,7.6632,130.55,130.54,0.05587432]
[1742472939587,19.03949716,130.55,130.54,0.05587432]
[1742472939987,7.71487822,130.56,130.54,0.05587432]
[1742472940189,11.42877538,130.56,130.54,0.05587432]
[1742472940396,7.6628,130.55,130.54,0.05587432]
[1742472948308,7.6647,130.52,130.49,17.7570894]
[1742472948803,7.6647,130.52,130.49,7.6662]
[1742472949103,7.6647,130.52,130.48,27.38]
[1742472949308,7.6647,130.52,130.49,7.666]
[1742472949608,0.0510547,130.51,130.49,7.71729416]
[1742472951212,0.0510547,130.51,130.49,0.05129416]
[1742472952606,0.0510547,130.51,130.49,7.71749416]
[1742472952906,0.0510547,130.51,130.49,0.05129416]
[1742472953611,0.0510547,130.51,130.49,7.71729416]
[1742472953816,0.0510547,130.51,130.49,17.80838356]
[1742472954415,0.0510547,130.51,130.5,7.6657]
[1742472960512,27.36,130.56,130.49,17.80838356]
[1742472960718,27.36,130.56,130.51,17.7570894]
[1742472961015,27.36,130.56,130.51,45.1170894]
[1742472961220,27.36,130.56,130.52,11.36121787]
[1742472961516,7.71669568,130.55,130.53,0.05762356]
[1742472962416,0.05389568,130.55,130.53,0.05762356]
[1742472963421,7.71699568,130.55,130.53,0.05762356]
[1742472963720,0.05389568,130.55,130.53,0.05762356]
[1742472965021,0.05389568,130.55,130.53,7.72142356]
[1742472965318,27.41389568,130.55,130.53,7.72142356]
[1742472965921,27.41389568,130.55,130.53,0.05762356]
[1742472967218,27.41389568,130.55,130.53,7.72142356]
[1742472968020,0.05389568,130.55,130.54,7.6633]
[1742472968320,27.41389568,130.55,130.54,7.6633]
[1742472969619,27.41389568,130.55,130.53,7.72132356]
[1742472970723,35.07679568,130.55,130.53,0.05762356]
[1742472971317,27.41389568,130.55,130.53,7.72142356]
[1742472972422,0.05389568,130.55,130.54,7.6633]
[1742472973123,0.05389568,130.55,130.53,11.41884143]
[1742472973723,0.05389568,130.55,130.53,19.08264143]
[1742472974024,0.05389568,130.55,130.53,11.41884143]
[1742472974224,7.71669568,130.55,130.53,0.05762356]
[1742472974425,0.05389568,130.55,130.53,0.05762356]
[1742472974724,0.05389568,130.55,130.53,7.72132356]
[1742472975619,0.05389568,130.55,130.54,7.6633]
[1742472977925,0.05389568,130.55,130.53,19.08254143]
[1742472978614,0.05389568,130.55,130.54,7.6633]
[1742472982221,0.05389568,130.55,130.54,19.02451787]
[1742472987328,0.05389568,130.55,130.54,11.36121787]
[1742472988039,0.05389568,130.55,130.53,11.41884143]
[1742472988534,0.05389568,130.55,130.54,7.6633]
[1742472990634,0.05389568,130.55,130.54,19.02451787]
[1742472994037,0.05389568,130.55,130.54,11.36121787]
[1742472994636,0.05389568,130.55,130.54,7.6633]
[1742472996139,0.05389568,130.55,130.53,19.08244143]
[1742472996336,0.05389568,130.55,130.53,11.41884143]
[1742472996534,0.05389568,130.55,130.54,7.6633]
[1742473002347,0.05389568,130.55,130.54,19.02451787]
[1742473003945,27.36,130.59,130.57,7.6613]
[1742473004240,27.36,130.59,130.56,11.36121787]
[1742473004444,35.0205,130.59,130.56,19.02301787]
[1742473004644,27.36,130.59,130.56,19.02301787]
[1742473004951,27.36,130.59,130.57,7.6616]
[1742473005143,27.40961053,130.59,130.57,7.6616]
[1742473005544,0.04961053,130.59,130.57,7.6616]
[1742473005849,27.40961053,130.59,130.57,7.6616]
[1742473006551,0.04961053,130.59,130.58,7.661]
[1742473007247,0.04961053,130.59,130.57,19.02241787]
[1742473007438,0.04961053,130.59,130.56,0.05510561]
[1742473007852,7.71031053,130.59,130.56,0.05510561]
[1742473008342,0.04961053,130.59,130.56,0.05510561]
[1742473008651,11.36121787,130.57,130.56,0.05510561]
[1742473008851,7.6642,130.53,130.5,11.36121787]
[1742473009146,38.72121787,130.54,130.49,11.36121787]
[1742473009347,27.36,130.53,130.49,11.36121787]
[1742473009547,35.0242,130.53,130.49,19.02751787]
[1742473009749,27.36,130.53,130.49,11.36121787]
[1742473009949,7.71361654,130.52,130.5,0.05744076]
[1742473010351,0.04851654,130.52,130.5,0.05744076]
[1742473011848,0.04851654,130.52,130.51,7.6651]
[1742473012050,0.04851654,130.52,130.5,0.05744076]
[1742473012555,0.04851654,130.52,130.5,7.72284076]
[1742473013460,0.04851654,130.52,130.5,0.05744076]
[1742473014261,7.6651,130.51,130.5,0.05744076]
[1742473014454,0.04851654,130.52,130.5,0.05744076]
[1742473015255,0.04851654,130.52,130.5,7.72264076]
[1742473015452,0.04851654,130.52,130.5,0.05744076]
[1742473015958,0.04851654,130.52,130.51,7.6651]
[1742473016259,0.04851654,130.52,130.5,0.05744076]
[1742473017561,0.04851654,130.52,130.5,7.72314076]
[1742473018260,0.04851654,130.52,130.5,0.05744076]
[1742473018561,11.36121787,130.51,130.46,11.36121787]
[1742473018861,7.6668,130.49,130.46,11.36121787]
[1742473019155,38.72121787,130.5,130.46,11.36121787]
[1742473019353,46.38721787,130.5,130.47,7.6674]
[1742473019755,46.43941395,130.5,130.47,7.72439694]
[1742473020155,38.77341395,130.5,130.47,7.72439694]
[1742473020361,27.41219608,130.5,130.47,0.05699694]
[1742473020763,27.41219608,130.5,130.47,7.72409694]
[1742473021365,35.07799608,130.5,130.47,7.72409694]
[1742473021558,35.07799608,130.5,130.47,0.05699694]
[1742473021958,38.77341395,130.5,130.47,0.05699694]
[1742473022160,7.6663,130.49,130.47,0.05699694]
[1742473022560,46.43931395,130.5,130.47,7.72439694]
[1742473022765,27.41219608,130.5,130.47,0.05699694]
[1742473023362,35.07819608,130.5,130.47,0.05699694]
[1742473023564,27.41219608,130.5,130.47,0.05699694]
[1742473023960,7.6663,130.49,130.47,0.05699694]
[1742473025265,7.6669,130.48,130.47,0.05699694]
[1742473025659,7.6683,130.46,130.43,264.20121787]
[1742473025861,27.36,130.46,130.43,252.84]
[1742473026768,27.40962165,130.46,130.44,7.6689]
[1742473027863,27.40962165,130.46,130.43,7.72761435]
[1742473028267,27.40962165,130.46,130.43,0.05801435]
[1742473028468,27.40962165,130.46,130.44,7.6692]
[1742473029369,27.40962165,130.46,130.43,7.72751435]
[1742473029568,27.40962165,130.46,130.43,0.05801435]
[1742473030069,27.40962165,130.46,130.43,7.72761435]
[1742473030862,27.40962165,130.46,130.43,0.05801435]
[1742473030863,38.77083952,130.46,130.43,0.05801435]
[1742473031070,38.77083952,130.46,130.38,252.9]
[1742473031071,11.36121787,130.44,130.38,264.26121787]
[1742473031264,38.72121787,130.43,130.38,11.36121787]
[1742473031470,46.39201787,130.42,130.38,7.6724]
[1742473031666,27.36,130.41,130.37,11.36121787]
[1742473031863,27.36,130.41,130.36,19.03481787]
[1742473031864,7.6719,130.4,130.36,19.03481787]
[1742473032259,0.05667679,130.39,130.37,0.05412229]
[1742473033467,0.05667679,130.39,130.37,7.72722229]
[1742473033668,0.05667679,130.39,130.37,0.05412229]
[1742473033969,0.05667679,130.39,130.38,7.6728]
[1742473035271,0.05667679,130.39,130.38,19.03401787]
[1742473035970,11.36121787,130.46,130.38,11.36121787]
[1742473036269,38.72121787,130.45,130.4,11.36121787]
[1742473036769,46.39011787,130.45,130.4,11.36121787]
[1742473036972,0.05610942,130.44,130.41,0.05546335]
[1742473037168,0.05610942,130.44,130.41,11.41668122]
[1742473037468,0.05610942,130.44,130.43,19.03101787]
[1742473038468,10.56850084,130.48,130.43,11.36121787]
[1742473038768,10.56850084,130.48,130.46,11.36121787]
[1742473039168,10.56850084,130.48,130.47,19.02871787]
[1742473039568,0.05849827,130.49,130.47,11.36121787]
[1742473039764,0.05849827,130.49,130.48,11.36121787]
[1742473039970,0.05849827,130.49,130.48,19.02811787]
[1742473041073,0.05849827,130.49,130.48,25.42703561]
[1742473041867,0.05849827,130.49,130.48,7.6669]
[1742473042274,27.41849827,130.49,130.46,0.05753854]
[1742473043474,27.41849827,130.49,130.46,7.72513854]
[1742473043677,27.41849827,130.49,130.46,0.05753854]
[1742473044076,27.41849827,130.49,130.47,7.6675]
[1742473046974,27.41849827,130.49,130.46,0.05753854]
[1742473047374,27.41849827,130.49,130.47,7.6675]
[1742473047574,27.41849827,130.49,130.46,0.05753854]
[1742473047770,27.41849827,130.49,130.46,17.81767415]
[1742473047970,27.41849827,130.49,130.48,7.6669]
[1742473049081,0.05849827,130.49,130.48,7.6669]
[1742473050781,0.05849827,130.49,130.47,7.6672]
[1742473052984,0.05849827,130.49,130.48,7.6669]
[1742473053386,27.36,130.53,130.48,17.76013561]
[1742473053785,27.36,130.53,130.52,7.6645]
[1742473054089,27.36,130.54,130.5,17.76013561]
[1742473054283,27.36,130.54,130.52,7.6641]
[1742473054683,0.04862667,130.54,130.52,7.71505763]
[1742473055084,0.04862667,130.54,130.53,7.6639]
[1742473055288,27.40862667,130.54,130.53,7.6639]
[1742473055789,27.40862667,130.54,130.52,0.05095763]
[1742473056288,7.6639,130.53,130.52,0.05095763]
[1742473056490,27.40862667,130.54,130.52,0.05095763]
[1742473056988,35.07242667,130.54,130.52,0.05095763]
[1742473057289,27.40862667,130.54,130.52,0.05095763]
[1742473057591,0.04862667,130.54,130.52,0.05095763]
[1742473058185,0.04862667,130.54,130.53,7.6639]
[1742473058391,0.04862667,130.54,130.52,0.05095763]
[1742473060196,0.04862667,130.54,130.52,7.71515763]
[1742473060386,0.04862667,130.54,130.52,0.05095763]
[1742473060590,7.71232667,130.54,130.52,0.05095763]
[1742473060793,0.04862667,130.54,130.52,0.05095763]
[1742473061796,7.71232667,130.54,130.52,0.05095763]
[1742473061997,17.80876228,130.54,130.46,17.76013561]
[1742473062189,17.80876228,130.54,130.47,7.6669]
[1742473062190,7.6654,130.51,130.47,7.6669]
[1742473062389,27.36,130.5,130.44,17.76013561]
[1742473062586,27.36,130.49,130.44,17.76013561]
[1742473062890,27.36,130.49,130.48,7.6664]
[1742473063791,0.05549859,130.5,130.49,7.6663]
[1742473064191,0.05549859,130.5,130.47,0.0547525]
[1742473064497,0.05549859,130.5,130.48,7.6664]
[1742473064694,0.05549859,130.5,130.47,0.0547525]
[1742473065195,0.05549859,130.5,130.48,7.6666]
[1742473065694,0.05549859,130.5,130.47,0.0547525]
[1742473065888,0.05549859,130.5,130.48,7.6666]
[1742473066093,0.05549859,130.5,130.47,0.0547525]
[1742473066396,0.05549859,130.5,130.49,7.6663]
[1742473066797,27.36,130.53,130.48,17.76013561]
[1742473066992,6.4655,130.57,130.5,17.76013561]
[1742473067186,27.36,130.56,130.5,17.76013561]
[1742473067389,14.1274,130.57,130.53,7.6635]
[1742473067597,27.36,130.56,130.52,17.76013561]
[1742473067998,0.05343195,130.55,130.53,0.05506166]
[1742473068296,0.05343195,130.55,130.53,7.71876166]
[1742473068597,0.05343195,130.55,130.53,7.71866166]
[1742473068797,0.05343195,130.55,130.53,0.05506166]
[1742473069193,0.05343195,130.55,130.53,7.71876166]
[1742473069394,0.05343195,130.55,130.53,0.05506166]
[1742473069889,0.05343195,130.55,130.54,7.6633]
[1742473070095,6.2804,130.61,130.54,17.76013561]
[1742473070291,27.36,130.6,130.54,17.76013561]
[1742473070495,27.36,130.6,130.56,17.76013561]
[1742473071298,0.05664781,130.59,130.57,0.05234672]
[1742473074500,7.71744781,130.59,130.57,0.05234672]
[1742473074802,0.05664781,130.59,130.57,0.05234672]
[1742473076298,7.71734781,130.59,130.57,0.05234672]
[1742473077100,7.661,130.58,130.57,0.05234672]
[1742473078504,7.71734781,130.59,130.57,0.05234672]
[1742473079306,0.05664781,130.59,130.57,0.05234672]
[1742473080400,0.05664781,130.59,130.57,7.71364672]
[1742473080596,0.05664781,130.59,130.57,0.05234672]
[1742473081202,7.71734781,130.59,130.57,0.05234672]
[1742473083219,7.661,130.58,130.57,0.05234672]
[1742473084711,2.25774781,130.59,130.57,0.05234672]
[1742473085605,0.05664781,130.59,130.57,0.05234672]
[1742473086408,4.781e-05,130.59,130.58,17.76013561]
[1742473086614,69.56652903,130.64,130.58,17.76013561]
[1742473086818,69.56652903,130.64,130.6,17.76013561]
[1742473087113,42.22652903,130.64,130.63,7.6581]
[1742473087310,42.22652903,130.64,130.6,17.76013561]
[1742473087911,0.04978161,130.63,130.61,0.056289]
[1742473088514,27.34,130.62,130.61,0.056289]
[1742473089718,0.04978161,130.63,130.61,0.056289]
[1742473090607,0.04978161,130.63,130.62,7.6587]
[1742473091012,0.02547371,130.63,130.62,25.41883561]
[1742473091907,0.02547371,130.63,130.62,17.76013561]